[Event "Serbian League Women 2024"]
[Site "Bajina Basta"]
[Date "2024.10.02"]
[Round "6.18"]
[White "Roebers, Eline"]
[Black "Doluhanova, Evgeniya"]
[Result "1-0"]
[ECO "B90"]
[WhiteElo "2340"]
[BlackElo "2304"]
[Annotator "TA"]
[PlyCount "67"]
[EventDate "2024.09.26"]
[EventType "team-tourn"]
[EventCountry "SRB"]
[SourceTitle "playchess.com"]
[Source "ChessBase"]
[SourceQuality "1"]
[TimeControl "40/5400+30:1800+30"]

{[%evp 11,67,5,11,1,0,7,31,22,32,20,22,27,82,0,105,10,18,0,0,0,0,6,22,0,104,96,207,204,473,439,571,566,811,820,821,813,822,812,810,777,693,514,522,450,507,478,1422,1102,929,835,809,0,940,671,635,618,29983,29984]} 1. e4 {[%emt 0:00:01]} c5 {[%emt 0:08:18]} 2. Nf3 {[%emt 0:00:11]} d6 {[%emt 0:00:03]} 3. d4 {[%emt 0:00:05]} cxd4 {[%emt 0:00:03]} 4. Nxd4 {[%emt 0:00:04]} Nf6 {[%emt 0:00:02]} 5. Nc3 {[%emt 0:00:05]} a6 {[%emt 0:00:01]} 6. h3 {[%emt 0:00:27]} e5 {[%emt 0:00:21]} 7. Nf3 {[%emt 0:00:04]} b5 {[%emt 0:01:23][%cal Bb7b5,Bb5b4][%mdl 32]} 8. a4 {[%emt 0:05:10]} b4 {[%emt 0:04:15]} 9. Nd5 {[%emt 0:00:05] White is slightly better.} Bb7 {[%emt 0:00:55]} 10. Nxf6+ {[%emt 0:12:05]} gxf6 {[%emt 0:00:56]} 11. Bd3 {[%emt 0:04:42]} d5 {[%emt 0:00:49]} (11... Nd7 $11) 12. Nd2 {[%emt 0:07:26]} (12. Qe2 $1 $16) 12... f5 {[%emt 0:12:32]} 13. exd5 {[%emt 0:06:49]} (13. Qh5 $1 $16) 13... Qxd5 $11 {[%emt 0:00:43]} 14. Qe2 {[%emt 0:01:36]} Nc6 {[%emt 0:07:57] Threatens to win with ...Nd4.} 15. Nf3 {[%emt 0:01:09]} e4 {[%emt 0:05:17] ...0-0-0 would now be deadly.} 16. Bc4 {[%emt 0:01:06]} Qd7 {[%emt 0:00:11]} 17. Bf4 $36 {[%emt 0:03:18][%mdl 2048] White fights for an advantage.} (17. O-O $5) 17... Rg8 {[%emt 0:11:38] [#]} (17... O-O-O $11 18. Ne5 Nxe5 19. Bxe5 Rg8 20. Bxa6 Qd5) 18. Ng5 $1 $16 {[%emt 0:20:27] White leaves nothing to chance now.} (18. Rd1 $6 Qe7 19. Nd4 Nxd4 20. Rxd4 Qf6 $11) 18... Rg7 {[%emt 0:01:33]} (18... Nd4 $16 {might work better.} 19. Qd1 Ne6 20. Qxd7+ (20. Nxh7 Qxd1+ 21. Rxd1 Be7 $15) 20... Kxd7 21. O-O-O+ (21. Nxh7 Nxf4 22. Nf6+ Kc7 $17) 21... Ke7 22. Bd6+ (22. Nxh7 $2 Nxf4 23. g3 Rc8 $19) 22... Ke8 23. Nxe6 (23. Bxe6 Bxd6 24. Nxf7 Bf4+ 25. Kb1 Ke7 $14) 23... fxe6) 19. Rd1 $18 {[%emt 0:02:21]} Nd4 $2 {[%emt 0:27:28]} (19... Qe7) 20. Qh5 {[%emt 0:10:40] Nxf7 is the strong threat.} (20. Bxf7+ Qxf7 (20... Rxf7 21. Qc4 $14) 21. Rxd4 Qf6 $11) 20... O-O-O {[%emt 0:00:28][%cal Od4f3]} 21. Nxf7 {[%emt 0:01:35]} e3 {[%emt 0:08:22]} 22. Nxd8 {[%emt 0:07:15]} (22. Bxe3 Re8 23. Rxd4 Qxd4 $18) 22... exf2+ {[%emt 0:02:52]} 23. Kxf2 {[%emt 0:00:47]} Kxd8 {[%emt 0:05:03]} 24. Be3 {[%emt 0:01:47]} Bc5 {[%emt 0:00:09]} 25. Qh4+ {[%emt 0:01:12]} Kc8 {[%emt 0:00:05]} 26. Rxd4 {[%emt 0:05:21]} Rxg2+ {[%emt 0:00:09]} 27. Ke1 {[%emt 0:00:16]} Bxd4 {[%emt 0:01:02]} 28. Qxd4 {[%emt 0:01:03]} ({Weaker is} 28. Bxd4 Rxc2 (28... Qxa4 $2 {perishes.} 29. Be6+ $18) 29. Be3 Qc6 $15 (29... Bxh1 30. Qf6 $14)) 28... Rxc2 {[%emt 0:00:55]} (28... Qxd4 $142 29. Bxd4 Rxc2) 29. Qh8+ {[%emt 0:01:05]} Kc7 {[%emt 0:00:11]} 30. Bf4+ {[%emt 0:00:03]} Kb6 {[%emt 0:00:32] [#]} 31. Be3+ $2 {[%emt 0:02:29]} ({Only move:} 31. Qf6+ $1 $18 Ka7 32. Be3+ Kb8 33. Be6) 31... Kc6 $2 {[%emt 0:01:03][%mdl 8192]} (31... Kc7 $11) 32. Be2 {[%emt 0:03:07] Strongly threatening Rg1.} Qe7 {[%emt 0:00:31]} 33. Qd4 {[%emt 0:00:35]} Kc7 {[%emt 0:00:25]} 34. Rg1 {[%emt 0:00:08] Weighted Error Value: White=0.31/Black=0.50.  Mistake:       	White=2     	Black=6      Inaccurate:     	---       	Black=2      OK:         	White=5     	Black=5      Best:        	White=4     	Black=2      Strong:       	White=1     	---} 1-0

[Event "Serbian League Women 2024"]
[Site "Bajina Basta"]
[Date "2024.10.02"]
[Round "6.21"]
[White "Garifullina, Leya"]
[Black "Pogorelskikh, Sofia"]
[Result "1/2-1/2"]
[ECO "B45"]
[WhiteElo "2438"]
[BlackElo "2176"]
[Annotator "TA"]
[PlyCount "78"]
[EventDate "2024.09.26"]
[EventType "team-tourn"]
[EventCountry "SRB"]
[SourceTitle "playchess.com"]
[Source "ChessBase"]
[SourceQuality "1"]
[TimeControl "40/5400+30:1800+30"]

{[%evp 15,78,22,28,31,22,20,33,32,30,32,26,39,63,49,47,48,46,54,47,46,46,45,45,50,47,43,41,37,36,27,29,32,37,25,26,26,40,22,31,10,30,-37,-23,-23,0,-15,-24,-15,-19,-20,0,0,0,0,0,0,0,0,0,0,0,0,0,0,0]} 1. e4 {[%emt 0:00:18]} c5 {[%emt 0:00:26]} 2. Nf3 {[%emt 0:00:07]} e6 {[%emt 0:00:20]} 3. d4 {[%emt 0:00:08]} cxd4 {[%emt 0:00:21]} 4. Nxd4 {[%emt 0:00:13]} Nf6 {[%emt 0:00:22]} 5. Nc3 {[%emt 0:00:06]} Nc6 {[%emt 0:00:14]} 6. Nxc6 {[%emt 0:00:27]} bxc6 {[%emt 0:00:21]} 7. e5 {[%emt 0:00:05]} Nd5 {[%emt 0:00:21]} 8. Ne4 {[%emt 0:00:09]} Bb7 {[%emt 0:02:01]} 9. Be2 {[%emt 0:00:19]} c5 {[%emt 0:01:12]} 10. O-O {[%emt 0:00:24]} Qc7 {[%emt 0:00:54] [#]} 11. Nd6+ $1 {[%emt 0:00:55] White is slightly better.} Bxd6 {[%emt 0:00:12]} 12. exd6 {[%emt 0:00:07]} Qc6 {[%emt 0:00:25][%cal Oe8g8]} (12... Qxd6 $2 13. c4 $18) 13. f3 {[%emt 0:01:04]} e5 {[%emt 0:01:15][%cal Oe8g8]} (13... Qxd6 $2 14. c4 $18) 14. c4 {[%emt 0:00:24]} Nf4 {[%emt 0:00:15]} 15. Bxf4 {[%emt 0:00:12]} exf4 {[%emt 0:00:09]} 16. Qd2 {[%emt 0:00:58]} O-O $1 {[%emt 0:00:36]} 17. Bd3 {[%emt 0:01:11]} Rae8 {[%emt 0:03:20]} 18. Qxf4 {[%emt 0:00:49]} Re6 {[%emt 0:00:55][%cal Oc6b6]} 19. Rad1 {[%emt 0:00:20]} g6 {[%emt 0:00:49] Against Bf5} 20. b3 {[%emt 0:00:48]} Qa6 {[%emt 0:02:46]} 21. Bb1 {[%emt 0:00:07]} Qa5 {[%emt 0:00:56]} 22. Qd2 {[%emt 0:00:16]} Qxd2 {[%emt 0:01:59]} 23. Rxd2 {[%emt 0:00:05]} Rfe8 {[%emt 0:06:07]} 24. Kf2 {[%emt 0:00:40]} a5 {[%emt 0:02:15]} 25. Bc2 {[%emt 0:00:19]} Bc6 {[%emt 0:02:14]} 26. Rb1 {[%emt 0:03:32]} Kg7 {[%emt 0:09:24]} 27. a3 {[%emt 0:03:08]} Rb8 {[%emt 0:01:35]} 28. g4 {[%emt 0:05:07]} (28. h4 $11) 28... Rf6 {[%emt 0:12:19][%mdl 1024] Black has compensation.} 29. Bd1 {[%emt 0:00:58]} Rf4 {[%emt 0:04:24]} 30. Rc1 {[%emt 0:08:46]} g5 {[%emt 0:05:47][%cal Oc6f3] White must now prevent ...Bxf3!} 31. Rc3 {[%emt 0:01:18] [#]} h5 $1 {[%emt 0:05:46] The position is equal.} 32. h3 {[%emt 0:11:25]} hxg4 {[%emt 0:04:06]} 33. hxg4 {[%emt 0:00:05]} Rh8 {[%emt 0:01:50]} 34. Kg3 {[%emt 0:07:23]} Rh1 {[%emt 0:05:32]} 35. Re3 {[%emt 0:02:00]} Kf6 {[%emt 0:06:41] Prevents Re5} 36. Kg2 {[%emt 0:05:09]} Rh8 {[%emt 0:02:23]} ({But not} 36... Rd4 $6 37. Rxd4 cxd4 38. Rd3 $16 (38. Kxh1 dxe3 39. Kg2 Ke6 $16)) 37. Kg3 {[%emt 0:00:10]} Rh1 {[%emt 0:00:31]} 38. Kg2 {[%emt 0:00:13]} Rh8 {[%emt 0:00:18]} ({Much worse is} 38... Rd4 $6 39. Rxd4 cxd4 40. Rd3 $16 (40. Kxh1 dxe3 41. Kg2 Ke6 $16)) 39. Kg3 {[%emt 0:00:20]} Rh1 {[%emt 0:01:33] Weighted Error Value: White=0.07 (flawless) /Black=0.03 (flawless) .  Mistake:       	White=1     	---        OK:         	White=16    	Black=19     Best:        	---       	Black=2      Strong:       	---       	Black=1} 1/2-1/2

[Event "Serbian League Women 2024"]
[Site "Bajina Basta"]
[Date "2024.10.02"]
[Round "6.22"]
[White "Zherebtsova, Alexandra"]
[Black "Rakhmangulova, Anastasiya"]
[Result "1-0"]
[ECO "A42"]
[WhiteElo "2239"]
[BlackElo "2283"]
[Annotator "TA"]
[PlyCount "107"]
[EventDate "2024.09.26"]
[EventType "team-tourn"]
[EventCountry "SRB"]
[SourceTitle "playchess.com"]
[Source "ChessBase"]
[SourceQuality "1"]
[TimeControl "40/5400+30:1800+30"]

{[%evp 10,107,54,41,78,61,73,49,63,42,77,77,71,39,39,37,39,24,40,30,31,18,83,39,35,31,35,35,36,27,27,28,39,28,28,12,20,6,13,0,0,4,4,2,38,11,52,0,0,0,0,0,11,0,0,0,0,0,0,0,0,0,0,-93,-77,-87,-112,-100,-93,-257,-155,-152,-145,-138,-41,-55,-63,-200,-193,-258,-124,-106,-130,-131,0,0,0,0,329,322,308,262,350,457,2316,2175,2145,1706,1622,1410]} 1. d4 {[%emt 0:00:05]} g6 {[%emt 0:02:03]} 2. e4 {[%emt 0:01:19]} Bg7 {[%emt 0:00:09]} 3. c4 {[%emt 0:00:21]} d6 {[%emt 0:00:08]} 4. Nc3 {[%emt 0:01:44]} e5 {[%emt 0:00:09]} 5. d5 {[%emt 0:01:30]} Nd7 {[%emt 0:00:39]} 6. Bd3 {[%emt 0:06:17]} h5 {[%emt 0:06:51]} 7. Nf3 {[%emt 0:10:42]} a5 {[%emt 0:05:03]} 8. h3 {[%emt 0:05:46]} Bh6 {[%emt 0:04:25] White is slightly better.} 9. Bxh6 {[%emt 0:03:04]} Rxh6 {[%emt 0:03:33]} 10. Qd2 {[%emt 0:01:29] White is more active.} Nc5 {[%emt 0:03:44]} 11. O-O-O {[%emt 0:02:41]} h4 {[%emt 0:02:50]} 12. Bc2 {[%emt 0:09:42]} Bd7 {[%emt 0:02:06]} 13. Kb1 {[%emt 0:16:00]} Rh5 {[%emt 0:14:55]} 14. Rde1 {[%emt 0:01:51]} a4 {[%emt 0:02:20]} 15. Bd1 {[%emt 0:03:03]} Kf8 {[%emt 0:01:27]} (15... Qe7 $11 {remains equal.}) 16. Nh2 {[%emt 0:03:13][%cal Bf3h2,Bh2g4,Bg4e3,Be3f5][%mdl 32]} Rh8 {[%emt 0:14:23]} 17. Rhf1 {[%emt 0:02:50]} g5 $1 {[%emt 0:01:21]} 18. Bg4 {[%emt 0:01:03]} f6 {[%emt 0:00:23]} 19. Bxd7 {[%emt 0:02:30]} Qxd7 {[%emt 0:00:10]} 20. Ng4 {[%emt 0:01:47]} Kg7 {[%emt 0:00:42][%cal Bf8g7,Bg7f7,Bf7e8,Be8d8,Bd8c8,Bc8b8][%mdl 32]} 21. Rh1 {[%emt 0:01:30]} Ne7 {[%emt 0:04:31]} 22. g3 {[%emt 0:03:56]} Ng6 {[%emt 0:01:08]} 23. Ne3 {[%emt 0:02:04]} Kf7 {[%emt 0:00:21]} 24. Ref1 {[%emt 0:04:47]} Raf8 {[%emt 0:02:31]} 25. Qe2 {[%emt 0:03:23]} Ke8 {[%emt 0:03:29]} 26. Nf5 {[%emt 0:01:18]} Kd8 {[%emt 0:00:34]} 27. Qf3 {[%emt 0:02:36]} Kc8 {[%emt 0:00:49]} 28. Nd1 {[%emt 0:01:14]} (28. Kc2 $1 $14) 28... Kb8 $11 {[%emt 0:04:06]} 29. Re1 {[%emt 0:00:39]} Rh7 {[%emt 0:09:13]} 30. Nc3 {[%emt 0:03:10]} Qd8 {[%emt 0:04:53]} 31. Re3 {[%emt 0:01:06]} hxg3 $1 {[%emt 0:02:21]} 32. fxg3 {[%emt 0:00:31]} Rfh8 {[%emt 0:00:01]} 33. Qf1 {[%emt 0:00:55]} Qd7 {[%emt 0:00:19]} 34. Re2 {[%emt 0:01:00]} Rh5 {[%emt 0:00:44][%cal Og5g4,Bh7h5,Bh5f5,Bf5f3][%mdl 32]} 35. Reh2 {[%emt 0:00:38]} g4 {[%emt 0:00:17][%cal Og6f4]} 36. h4 {[%emt 0:01:56] [#]} (36. Qg2 $11) 36... Nxe4 $1 $17 {[%emt 0:00:41]} 37. Nxe4 {[%emt 0:00:21]} Rxf5 {[%emt 0:00:35]} (37... Qxf5 $6 38. Qe1 $11) 38. Qe2 {[%emt 0:00:46][%cal Oh1c1]} Rf3 {[%emt 0:00:16] White must now prevent ...f5.} 39. h5 $2 {[%emt 0:00:26]} (39. c5 $17) 39... Nf8 {[%emt 0:03:13]} 40. c5 {[%emt 0:00:33]} dxc5 {[%emt 0:02:32]} 41. Rd1 {[%emt 0:30:40][%cal Oa2a3]} Qf5 {[%emt 0:05:25]} (41... Qh7 $17 42. Ka1 Qe7) 42. Ka1 $1 $15 {[%emt 0:00:00]} Nd7 {[%emt 0:01:31]} (42... Rxh5 43. Rxh5 Qxh5 44. Qb5 $16) 43. d6 {[%emt 0:00:00] [#]} ({White should play} 43. a3 $1 $15) 43... c6 $1 $19 {[%emt 0:01:36]} (43... Rxh5 $2 44. dxc7+ Kxc7 45. Rxh5 Qxh5 46. Qb5 $18) 44. h6 {[%emt 0:00:00]} (44. a3 {might work better.}) 44... b6 {[%emt 0:08:21]} (44... Qg6 $19 {has better winning chances.} 45. Qc4 b5 (45... Rxh6 46. Rxh6 Qxh6 47. Qf7 $11)) 45. Qc4 $17 {[%emt 0:00:00]} Kb7 {[%emt 0:00:54] ...Re3 would now be deadly.} 46. a3 {[%emt 0:01:08][%cal Od1e1]} Rh7 {[%emt 0:05:34]} (46... Re3 $17 47. Nd2 Qg6 (47... Rxg3 $2 48. Qf7 $19)) 47. Re1 $11 {[%emt 0:00:18]} Qg6 {[%emt 0:00:15]} (47... b5 $5 48. Qg8 $8 Rf1 49. Rxf1 Qxf1+ 50. Ka2 Qd3 (50... Qf5 51. Re2 $11) 51. Qxh7 Qb3+ 52. Kb1 Qd1+ 53. Ka2 Qb3+ 54. Kb1 Qd1+ 55. Ka2 Qb3+ $11) 48. Qe6 {[%emt 0:01:17] Repels f5} Nf8 $2 {[%emt 0:01:52][%mdl 8192] [#]} (48... Rxh6 49. Qxd7+ Ka6 50. Qxc6 (50. Qc8+ Kb5 $18) 50... Ka7 51. d7 (51. Qxa4+ Kb8 $18) 51... Rd3 52. Nd6 (52. Qxa4+ Kb7 $18) 52... Rxd6 53. Qxd6) (48... Rd3 $11 {and Black is okay.} 49. Rh4 Rd4 50. Rxg4 Qxh6) 49. Qe7+ $3 $18 {[%emt 0:00:23][%mdl 512]} Nd7 {[%emt 0:01:43]} (49... Rxe7 50. dxe7 Nh7 51. Rd2 $18 (51. Nd6+ Ka6 $18)) 50. Qd8 {[%emt 0:00:17] Repels Qg8. And now Qc7+ would win.} f5 {[%emt 0:06:01]} (50... Rxh6 51. Qxd7+ Kb8 52. Qc7+ Ka8 53. d7 (53. Qxc6+ Ka7 54. d7 Rd3 55. Qc7+ Ka6 56. Qc8+ Ka7 57. Nc3 b5 58. Qc7+ Ka8) 53... Rd3 54. Rd2 (54. d8=R+ Rxd8 55. Qxd8+ Ka7 56. Qd7+ Ka6 57. Rxh6 Qg8 58. Qxc6 Ka7 59. Nd6 Qf7 60. Nxf7 f5 61. Qxb6+ Ka8 62. Rh8#) (54. Nd6 Rxd6 55. Qxd6 Qg8 56. d8=R+ Qxd8 57. Qxd8+ Kb7 58. Rxh6 c4 59. Qe7+ Ka6 60. Rh8 b5 61. Ra8+ Kb6 62. Qa7#) 54... Qg8 55. Rxd3 (55. Qc8+ Ka7 56. Qxg8 Rxd2 57. Nxd2 Rh8 58. Qxh8 c4 59. d8=Q Ka6 60. Qa8+ Kb5 61. Qxf6 c5 62. Qfc6#) (55. Qc8+ Ka7 56. Qxg8 Rxd2 57. Nxd2 Rh8 58. Qxh8 c4 59. d8=Q Ka6 60. Qa8+ Kb5 61. Qxf6 c5 62. Qfc6#)) 51. Ng5 {[%emt 0:00:45]} Nf8 {[%emt 0:02:19]} (51... Rd3 $142 52. Qc7+ Ka6) 52. Nxh7 {[%emt 0:00:20]} (52. Rxe5 Rf1+ 53. Ka2 Rd7 54. Qxf8 Qxg5 $11) (52. Qxf8 Qxg5 53. d7 Rd3 (53... Rxd7 54. h7 $11) 54. Qc8+ (54. Rxe5 Qc1+ 55. Ka2 Qc4+ 56. b3 Qxb3+ 57. Ka1 Rd1#) 54... Ka7 $11) 52... Nxh7 {[%emt 0:00:31]} 53. Qc7+ {[%emt 0:00:16]} (53. Rxe5 {leads to mate.} Rf1+ (53... Rxg3 $2 {perishes.} 54. Qe7+ Ka6 55. d7 $18) (53... Rxg3 $2 {is the wrong capture.} 54. Qe7+ Ka6 55. d7 $18)) 53... Ka6 {[%emt 0:00:05]} 54. d7 {[%emt 0:00:17] Weighted Error Value: White=0.18 (very precise) /Black=0.33.  Loses game:     	White=1     	Black=1      Mistake:       	White=4     	Black=5      Inaccurate:     	White=3     	Black=5      OK:         	White=14    	Black=18     Best:        	White=2     	Black=1      Strong:       	White=1     	Black=3      Brilliant:      	White=1     	Black=1} 1-0

[Event "Serbian League Women 2024"]
[Site "Bajina Basta"]
[Date "2024.10.02"]
[Round "6.23"]
[White "Mandura, Tijana"]
[Black "Ibrahimova, Sabina"]
[Result "1/2-1/2"]
[ECO "C47"]
[WhiteElo "2207"]
[BlackElo "2199"]
[Annotator "NA RC"]
[PlyCount "50"]
[EventDate "2024.09.26"]
[EventType "team-tourn"]
[EventCountry "SRB"]
[SourceTitle "playchess.com"]
[Source "ChessBase"]
[SourceQuality "1"]
[TimeControl "40/5400+30:1800+30"]

1. e4 {[%emt 1:31:00]} e5 {[%emt 0:01:01]} 2. Nf3 {[%emt 0:00:00]} Nf6 {[%emt 0:00:09]} 3. Nc3 {[%emt 0:00:00]} Nc6 {[%emt 0:00:12]} 4. d4 {[%emt 0:00:00]} exd4 {[%emt 0:00:19]} 5. Nxd4 {[%emt 0:00:00]} Bb4 {[%emt 0:00:18]} 6. Nxc6 {[%emt 0:00:00]} bxc6 {[%emt 0:00:09]} 7. Bd3 {[%emt 0:00:00]} d5 {[%emt 0:00:13]} 8. exd5 {[%emt 0:00:00]} O-O {[%emt 0:00:12]} 9. O-O {[%emt 0:00:00]} Bg4 {[%emt 0:00:18]} 10. f3 {[%emt 0:00:00]} Bh5 {[%emt 0:00:27]} 11. Bg5 {[%emt 0:00:00]} Qd6 {[%emt 0:15:25]} 12. Bxf6 {[%emt 0:00:00]} Qxf6 $11 {[%emt 0:02:43]} 13. dxc6 {[%emt 0:00:00]} Bxc3 {[%emt 0:07:21]} 14. bxc3 {[%emt 0:00:00]} Qxc3 {[%emt 0:01:12]} 15. Be4 {[%emt 0:00:00]} Qc5+ {[%emt 0:15:16]} 16. Kh1 {[%emt 0:00:00]} Rad8 {[%emt 0:01:27]} 17. Qe1 {[%emt 0:00:00]} Bg6 {[%emt 0:08:20]} 18. Rb1 {[%emt 0:00:00]} Bxe4 {[%emt 0:02:03]} 19. Qxe4 {[%emt 0:00:00]} Rd6 {[%emt 0:00:51]} 20. Rfe1 {[%emt 0:00:00]} h6 {[%emt 0:05:21]} 21. Qe7 {[%emt 0:00:00]} Rxc6 {[%emt 0:04:00]} 22. Rb7 {[%emt 0:00:00]} Qxe7 {[%emt 0:03:33]} 23. Rxe7 {[%emt 0:00:00]} Rxc2 {[%emt 0:01:30]} 24. Rexc7 {[%emt 0:00:00]} Rxa2 {[%emt 0:01:04]} 25. Rxa7 {[%emt 0:00:00]} Rxa7 {[%emt 0:02:44]} 1/2-1/2

[Event "Serbian League Women 2024"]
[Site "Bajina Basta"]
[Date "2024.10.02"]
[Round "6.24"]
[White "Djukic, Sandra"]
[Black "Eric, Jovana"]
[Result "1/2-1/2"]
[ECO "D12"]
[WhiteElo "2126"]
[BlackElo "2162"]
[Annotator "TA"]
[PlyCount "74"]
[EventDate "2024.09.26"]
[EventType "team-tourn"]
[EventCountry "SRB"]
[SourceTitle "playchess.com"]
[Source "ChessBase"]
[SourceQuality "1"]
[TimeControl "40/5400+30:1800+30"]

{[%evp 21,74,14,20,17,27,21,20,21,24,16,30,10,29,0,13,0,0,-4,0,-5,0,0,0,0,2,4,30,22,27,22,33,27,31,29,25,18,52,50,51,8,19,18,16,18,23,13,44,0,0,0,0,0,0,0,0]} 1. d4 {[%emt 0:01:13]} d5 {[%emt 0:00:08]} 2. c4 {[%emt 0:00:13]} c6 {[%emt 0:00:09]} 3. Nf3 {[%emt 0:00:19]} Nf6 {[%emt 0:00:14]} 4. e3 {[%emt 0:00:06]} Bf5 {[%emt 0:00:35]} 5. Bd3 {[%emt 0:00:07]} Bxd3 {[%emt 0:01:10]} 6. Qxd3 {[%emt 0:00:06]} e6 {[%emt 0:00:22]} 7. O-O {[%emt 0:00:32]} Nbd7 {[%emt 0:00:53]} 8. Nc3 {[%emt 0:01:06]} Bd6 {[%emt 0:01:55]} 9. e4 {[%emt 0:00:44]} dxe4 {[%emt 0:01:47]} 10. Nxe4 {[%emt 0:00:07]} Nxe4 {[%emt 0:00:07]} 11. Qxe4 {[%emt 0:00:04]} Nf6 {[%emt 0:07:12]} 12. Qe2 {[%emt 0:00:44]} O-O {[%emt 0:00:38]} 13. Bg5 {[%emt 0:18:42]} h6 {[%emt 0:04:35]} 14. Bh4 {[%emt 0:00:35]} Be7 {[%emt 0:09:39]} 15. Rad1 {[%emt 0:03:48][%cal Ba1d1,Bd1d3,Bd3g3][%mdl 32]} a5 {[%emt 0:03:38]} 16. Ne5 {[%emt 0:02:16]} a4 {[%emt 0:02:57]} 17. Rd3 {[%emt 0:27:24]} Nd7 {[%emt 0:17:25]} 18. Bxe7 {[%emt 0:15:05]} Qxe7 {[%emt 0:00:06]} 19. Rg3 {[%emt 0:06:51]} Nxe5 {[%emt 0:11:14]} 20. Qxe5 {[%emt 0:01:47][%csl Gg3][%cal Re5g7] [#]} f6 {[%emt 0:01:45]} 21. Qe3 {[%emt 0:06:41]} Kh8 {[%emt 0:06:33]} 22. h3 {[%emt 0:07:08]} Rfd8 {[%emt 0:02:23][%cal Bf8d8,Bd8d4,Bd4c4,Bc4c1][%mdl 32]} 23. Re1 {[%emt 0:03:53]} Qf7 {[%emt 0:16:03]} 24. Qxe6 {[%emt 0:00:48]} Qxe6 {[%emt 0:00:06]} 25. Rxe6 {[%emt 0:00:02] Strongly threatening Re7.} Rxd4 $11 {[%emt 0:00:06][%mdl 4096] Endgame. KRR-KRR} 26. Re7 {[%emt 0:00:18][%csl LRb7,LRg7]} Rg8 {[%emt 0:01:03]} 27. Rxb7 {[%emt 0:01:55]} Rxc4 {[%emt 0:00:05]} 28. Rd3 {[%emt 0:01:19]} Rc1+ {[%emt 0:04:29]} 29. Kh2 {[%emt 0:00:01]} Rc2 {[%emt 0:00:12]} 30. Kg3 {[%emt 0:01:02]} c5 {[%emt 0:01:24]} 31. Ra3 {[%emt 0:00:31]} Ra8 {[%emt 0:02:46]} 32. b3 {[%emt 0:00:29]} Rc3+ {[%emt 0:00:41]} 33. f3 {[%emt 0:00:23][%cal Ob7c7]} Ra5 {[%emt 0:02:14]} 34. Rxa4 {[%emt 0:00:33]} Rxa4 {[%emt 0:00:05] The position is equal.} 35. bxa4 {[%emt 0:00:03] [#] Rb3 is the strong threat.} Ra3 {[%emt 0:00:13][%csl LRa2,LRa4]} 36. Rc7 {[%emt 0:00:24]} Rxa4 {[%emt 0:00:09]} 37. Rxc5 {[%emt 0:00:05]} Rxa2 {[%emt 0:00:37] Weighted Error Value: White=0.08 (flawless) /Black=0.07 (flawless) .  Inaccurate:     	White=2     	Black=3      OK:         	White=5     	Black=7      Best:        	White=1     	Black=2} 1/2-1/2